[Event "Polish University-ch Open 2024"]
[Site "Lublin"]
[Date "2024.02.24"]
[Round "9.16"]
[White "Brozyna, Mateusz"]
[Black "Bilczewski, Kacper"]
[Result "0-1"]
[ECO "C01"]
[WhiteElo "2259"]
[BlackElo "2139"]
[Annotator "TA"]
[PlyCount "122"]
[EventDate "2024.02.22"]
[EventType "swiss"]
[EventCountry "POL"]
[SourceTitle "playchess.com"]
[Source "ChessBase"]
[SourceQuality "1"]
[TimeControl "600+3"]

{[%evp 13,122,25,27,29,24,17,28,25,23,31,42,43,94,65,60,56,55,58,58,46,56,46,71,47,51,50,89,86,76,76,81,56,66,66,85,81,81,76,77,76,85,81,70,25,37,0,0,-2,12,0,0,-35,-23,-110,-46,-59,-58,-66,-61,-143,-153,-148,-139,-184,-187,-179,-162,-148,-119,-262,-220,-215,-92,-142,-61,-191,-125,-156,-156,-225,-217,-1681,-1162,-1829,-1826,-1568,-1431,-1075,-1138,-214,-214,-6444,-6103,-29979,-29980,-29984,-29985,-29985,-29981,-29981,-29979,-29978,-29978,-29982,-29982,-29985,-29982,-29981,-29982,-29990,-29991]} 1. e4 {[%emt 0:00:01]} e6 {[%emt 0:00:02]} 2. d4 {[%emt 0:00:13]} d5 {[%emt 0:00:01]} 3. exd5 {[%emt 0:00:03]} exd5 {[%emt 0:00:02]} 4. Nf3 {[%emt 0:00:02]} Nf6 {[%emt 0:00:14]} 5. Bd3 {[%emt 0:00:02]} Bd6 {[%emt 0:00:03]} 6. Qe2+ {[%emt 0:00:02]} Qe7 {[%emt 0:00:05]} 7. Qxe7+ {[%emt 0:00:02]} Bxe7 {[%emt 0:00:02]} 8. Bf4 {[%emt 0:00:02]} c6 {[%emt 0:00:10]} 9. O-O {[%emt 0:00:04]} O-O {[%emt 0:00:11]} 10. Re1 {[%emt 0:00:05] Schwarz hat schwache schwarze Felder. Weiß hat minimalen Vorteil.} Re8 {[%emt 0:00:21]} 11. Nbd2 {[%emt 0:00:02]} Bg4 {[%emt 0:00:18]} 12. h3 {[%emt 0:00:17]} Bh5 {[%emt 0:00:03]} (12... Bxf3 $14 13. Nxf3 Nbd7) 13. Ne5 {[%emt 0:00:05]} Nbd7 {[%emt 0:00:19][%cal Bb8d7,Bd7f8,Bf8e6][%mdl 32]} 14. g4 {[%emt 0:00:13]} Bg6 $1 {[%emt 0:00:02]} 15. Nxg6 {[%emt 0:00:04]} hxg6 {[%emt 0:00:01]} 16. Kg2 {[%emt 0:00:36]} Nf8 {[%emt 0:00:02]} 17. c3 {[%emt 0:00:09]} Ne6 {[%emt 0:00:02]} 18. Bg3 {[%emt 0:00:01][%cal Oe1e6]} (18. Rxe6 $5 fxe6 19. Bxg6 $16) 18... Bf8 {[%emt 0:00:05]} 19. Nf3 {[%emt 0:00:13]} Re7 {[%emt 0:02:10]} 20. Re2 {[%emt 0:00:06]} Rae8 {[%emt 0:00:09][%cal Oe6f4]} 21. Rae1 {[%emt 0:00:03]} g5 {[%emt 0:00:29]} 22. Bd6 {[%emt 0:02:37]} Nf4+ {[%emt 0:00:15]} 23. Bxf4 {[%emt 0:00:02]} gxf4 {[%emt 0:00:02]} 24. Rxe7 {[%emt 0:00:15]} Rxe7 {[%emt 0:00:02]} 25. Bf5 {[%emt 0:00:23]} Rxe1 {[%emt 0:01:25]} 26. Nxe1 $16 {[%emt 0:00:02][%mdl 4096] Endspiel. KBN-KBN} Ne4 {[%emt 0:00:01]} 27. Kf3 {[%emt 0:00:50][%csl LRe4,LRf4]} Nd2+ {[%emt 0:00:47]} 28. Ke2 {[%emt 0:00:05]} Nc4 {[%emt 0:00:07][%cal Og7g6]} 29. b3 {[%emt 0:00:27]} Nd6 {[%emt 0:00:02]} 30. h4 {[%emt 0:01:10]} Be7 {[%emt 0:00:14]} 31. Ng2 {[%emt 0:00:10]} Nb5 {[%emt 0:00:53]} 32. Nxf4 {[%emt 0:01:08]} Nxc3+ {[%emt 0:00:03]} 33. Kf3 {[%emt 0:00:59]} (33. Ke3 $11) 33... Nxa2 {[%emt 0:00:02]} ({Auf keinen Fall} 33... Bxh4 34. a4 $15) (33... Nb5 $1 $17 {[%cal Rb5d4]} 34. Ke3 Bxh4) 34. Bc8 {[%emt 0:00:02]} b6 {[%emt 0:00:17]} 35. Nd3 $1 {[%emt 0:00:01] Es drohte Nc1} c5 {[%emt 0:00:35]} 36. g5 {[%emt 0:00:39]} ({Günstiger ist} 36. dxc5 $15 bxc5 37. Bb7) 36... c4 $1 $17 {[%emt 0:02:15]} 37. bxc4 {[%emt 0:00:07]} dxc4 {[%emt 0:00:00]} 38. Ne5 {[%emt 0:00:01]} c3 {[%emt 0:00:00] Und jetzt ...c2 wäre schön.} 39. Bf5 {[%emt 0:00:03]} g6 {[%emt 0:00:00]} 40. Be4 {[%emt 0:00:12]} Nb4 {[%emt 0:00:00]} 41. Nd3 {[%emt 0:00:02]} (41. Ke3 $17 {war nötig.}) 41... Nxd3 {[%emt 0:00:00]} 42. Bxd3 $19 {[%emt 0:00:02] [#] KB-KB} Bd6 {[%emt 0:00:00]} (42... a5 $1 $19 {ist viel giftiger. Droht ...a4 und aus.} 43. Bc2 b5) 43. Ke4 {[%emt 0:00:02]} (43. Ke2 $142) 43... Kf8 {[%emt 0:00:00]} (43... a5 $17 44. Bc2 Bb4) 44. f4 {[%emt 0:00:02]} (44. Bc2 $15) 44... Ke7 {[%emt 0:00:00]} ({Vorzuziehen ist} 44... a5 $19 {Und ...a4 würde nun gewinnen.} 45. Bc2 Ke7) 45. f5 {[%emt 0:00:03] [#]} Bg3 $1 {[%emt 0:00:07]} 46. fxg6 {[%emt 0:00:18]} (46. Kd5 $17 {ist eine bessere Verteidigung.}) 46... fxg6 {[%emt 0:00:02]} 47. Kf3 $2 {[%emt 0:00:01]} (47. Kd5) 47... Bxh4 {[%emt 0:00:02]} 48. Bxg6 {[%emt 0:00:01]} Bxg5 {[%emt 0:00:01]} 49. Ke2 {[%emt 0:00:02]} Kd6 {[%emt 0:00:13] Droht stark ...Bd2.} 50. Kd3 {[%emt 0:00:03]} Bd2 {[%emt 0:00:01]} 51. Kc4 {[%emt 0:00:03]} a6 {[%emt 0:00:02] Weiss muss nun ...b5+ beachten.} 52. Be4 $2 {[%emt 0:00:06]} (52. Kd3) 52... b5+ {[%emt 0:00:01]} 53. Kb3 {[%emt 0:00:08]} a5 {[%emt 0:00:02] Schwarz setzt Matt.} 54. Bd3 {[%emt 0:00:03]} a4+ {[%emt 0:00:07]} 55. Ka3 {[%emt 0:00:03]} Kc6 {[%emt 0:00:19]} 56. Bc2 {[%emt 0:00:06]} Be3 {[%emt 0:00:00]} 57. Be4+ {[%emt 0:00:04]} Kb6 {[%emt 0:00:00]} 58. d5 {[%emt 0:00:05]} Kc5 {[%emt 0:00:01]} 59. d6 {[%emt 0:00:03]} Kxd6 {[%emt 0:00:02]} 60. Kb4 {[%emt 0:00:01]} Bd2 {[%emt 0:00:06]} 61. Kxb5 {[%emt 0:00:06]} a3 {[%emt 0:00:01] Gewichteter Fehlerwert: Weiß=0.70/Schwarz=0.18 (sehr präzise) .  Fehler:       	Weiß=7     	Schwarz=5     Ungenau:       	Weiß=7     	Schwarz=1     OK:         	Weiß=8     	Schwarz=13    Bester:       	Weiß=2     	Schwarz=2     Stark:        	Weiß=1     	Schwarz=1} 0-1

[Event "Polish University-ch Open 2024"]
[Site "Lublin"]
[Date "2024.02.24"]
[Round "9.17"]
[White "Chaczynski, Kamil"]
[Black "Marczuk, Dominik"]
[Result "0-1"]
[ECO "B52"]
[WhiteElo "2118"]
[BlackElo "2283"]
[Annotator "TA"]
[PlyCount "102"]
[EventDate "2024.02.22"]
[EventType "swiss"]
[EventCountry "POL"]
[SourceTitle "playchess.com"]
[Source "ChessBase"]
[SourceQuality "1"]
[TimeControl "600+3"]

{[%evp 19,102,40,56,20,39,33,36,36,37,32,31,19,20,27,31,-11,20,0,15,2,12,12,9,7,14,10,7,9,37,0,0,0,0,0,0,0,0,0,0,0,13,20,33,-28,-35,-132,-127,-228,-220,-284,-268,-939,-939,-941,-945,-817,-474,-694,-508,-500,-522,-493,-502,-500,-497,-29973,-29972,-29983,-924,-885,-783,-765,-700,-635,-537,-29976,-29977,-29977,-29978,-29998,-29989,-29989,-29990,-29996,-29979]} 1. e4 {[%emt 0:00:01]} c5 {[%emt 0:00:01]} 2. Nf3 {[%emt 0:00:01]} d6 {[%emt 0:00:01]} 3. Bb5+ {[%emt 0:00:01]} Bd7 {[%emt 0:00:01]} 4. Bxd7+ {[%emt 0:00:02]} Nxd7 {[%emt 0:00:01]} 5. O-O {[%emt 0:00:02]} Ngf6 {[%emt 0:00:01]} 6. Qe2 {[%emt 0:00:07]} e6 {[%emt 0:00:02]} 7. c3 {[%emt 0:00:08]} Be7 {[%emt 0:00:02]} 8. d4 {[%emt 0:00:07]} cxd4 {[%emt 0:00:05]} 9. cxd4 {[%emt 0:00:01]} d5 {[%emt 0:00:01]} 10. e5 {[%emt 0:00:04]} Ne4 {[%emt 0:00:01]} 11. Rd1 {[%emt 0:00:53]} Qb6 {[%emt 0:00:58]} 12. Ne1 {[%emt 0:00:50] Droht stark f3.} f6 {[%emt 0:00:47]} 13. f3 {[%emt 0:00:19] Weiß steht etwas besser.} Ng5 {[%emt 0:00:06]} 14. exf6 {[%emt 0:00:47]} Bxf6 {[%emt 0:00:26]} 15. Be3 {[%emt 0:00:06]} O-O {[%emt 0:00:12]} 16. Nc3 {[%emt 0:00:10]} Nf7 {[%emt 0:00:11]} 17. Qb5 {[%emt 0:01:44]} Rfd8 {[%emt 0:01:10]} 18. Rac1 {[%emt 0:00:27]} Rac8 {[%emt 0:00:30]} 19. b3 {[%emt 0:01:27]} Nd6 {[%emt 0:00:44]} 20. Qxb6 {[%emt 0:00:01]} Nxb6 {[%emt 0:00:01]} 21. g4 {[%emt 0:00:23]} g6 {[%emt 0:01:44]} 22. Nd3 {[%emt 0:00:13]} Nd7 {[%emt 0:00:01][%cal Bb6d7,Bd7b8,Bb8c6,Bc6a5,Ba5b3][%mdl 32]} 23. Kg2 {[%emt 0:00:36]} b6 {[%emt 0:00:01]} 24. Kg3 {[%emt 0:00:42]} Nb8 {[%emt 0:02:17]} 25. h4 {[%emt 0:00:20]} Nc6 {[%emt 0:00:06]} 26. Ne2 {[%emt 0:00:07]} Nb5 {[%emt 0:00:10]} 27. Ndf4 {[%emt 0:00:18][%cal Oa2a4]} Kf7 {[%emt 0:01:44]} 28. a4 {[%emt 0:00:13]} Nd6 {[%emt 0:00:00]} 29. Nd3 {[%emt 0:00:32]} Na5 {[%emt 0:00:00]} 30. Ne5+ {[%emt 0:00:26]} Ke7 {[%emt 0:00:00]} 31. Rxc8 {[%emt 0:00:14]} (31. b4 $14 Ndc4 32. Rd3 Nxe3 (32... Bxe5+ 33. dxe5 Nxe3 34. Rxc8 $11) 33. Rxc8 Rxc8 34. Rxe3) 31... Rxc8 $11 {[%emt 0:00:00]} 32. Rb1 {[%emt 0:00:09] Ab hier gerät Weiß ins Schliddern.} ({Besser ist} 32. b4 $15 Nc6 33. Nd3) 32... Rc2 $17 {[%emt 0:00:00]} 33. Nf4 {[%emt 0:00:04]} (33. Kf2 $17) 33... Rc3 $19 {[%emt 0:00:00][%csl LRb3,LRe3]} 34. Re1 {[%emt 0:00:06]} (34. b4 Nac4 (34... Rxe3 35. bxa5 Bxe5 36. dxe5 $17) 35. Nxc4 Nxc4) 34... Nxb3 {[%emt 0:00:00] Weiss muss nun ...Bxe5 beachten.} ({Schwächer ist} 34... Rxb3 35. Ned3 $17) 35. g5 $2 {[%emt 0:00:02]} (35. Ned3) 35... Bxe5 {[%emt 0:00:00]} 36. dxe5 {[%emt 0:00:01]} Nf5+ {[%emt 0:00:00]} 37. Kf2 {[%emt 0:00:01]} Rc4 {[%emt 0:00:14][%cal Od5d4] [#] ...d4! wäre nun fies.} 38. h5 {[%emt 0:00:07]} (38. Rb1 $142 d4 39. Bd2 Nxd2 40. Rb2) 38... gxh5 {[%emt 0:00:08]} 39. Nxh5 {[%emt 0:00:01]} Rxa4 {[%emt 0:00:01]} 40. Nf6 {[%emt 0:00:02]} d4 {[%emt 0:00:09]} 41. Bf4 {[%emt 0:00:04]} Nc5 {[%emt 0:00:01]} 42. Nxh7 {[%emt 0:00:02] [#]} (42. Rd1 $19) 42... Nd3+ {[%emt 0:00:01] Hervorragende Reitkunst.} 43. Kf1 {[%emt 0:00:01]} Nxe1 {[%emt 0:00:02]} (43... Nxf4 $142 44. Re2 Ng3+ (44... Nxe2 $2 45. Kxe2 Ra2+ 46. Kd3 $19) 45. Kf2 Nh1+ (45... Ngxe2 $2 46. g6 $19) 46. Kg1 Nxe2+ 47. Kxh1 d3 48. Kg2 d2 (48... Nf4+ {ist ein Selbstmatt.} 49. Kg3 d2 50. Nf6 d1=Q 51. Ne4 Nh5+ 52. Kg2 Ra1 53. Kf2 Ra2+ 54. Nd2 Rxd2+ 55. Ke3 Re2#) 49. Nf8 Nf4+ (49... d1=B $2 50. Nh7 $19) 50. Kg3 d1=Q (50... d1=R {führt zum Matt.} 51. Kf2 Rd2+ 52. Kg3 Rg2+ 53. Kh4 Ra1 54. Ng6+ Nxg6+ 55. Kh5 Kf7 56. Kh6 Rh2#) 51. Ng6+ Nxg6 52. Kh2 Ra2+ (52... Nxe5 53. Kh3 Qxf3+ 54. Kh2 Rh4+ 55. Kg1 Rh1#) 53. Kg3 Qg1+ 54. Kh3 Rh2#) 44. Kxe1 {[%emt 0:00:02][%mdl 4096] Endspiel. KRN-KBN} Ra2 {[%emt 0:00:04]} 45. g6 {[%emt 0:00:01]} Rg2 {[%emt 0:00:03]} 46. Bg5+ {[%emt 0:00:01]} Kd7 {[%emt 0:00:05] ...Kc6 ist eine echte Drohung.} 47. f4 {[%emt 0:00:00]} d3 {[%emt 0:00:03] Schwarz setzt Matt.} 48. Nf6+ {[%emt 0:00:04]} Kc6 {[%emt 0:00:01]} 49. Kf1 {[%emt 0:00:03]} d2 {[%emt 0:00:03][%cal Rf5e3]} 50. Kxg2 {[%emt 0:00:04]} d1=Q {[%emt 0:00:02]} 51. g7 {[%emt 0:00:02]} Nxg7 {[%emt 0:00:03] Gewichteter Fehlerwert: Weiß=0.69/Schwarz=0.46.  Fehler:       	Weiß=5     	---        Ungenau:       	Weiß=2     	Schwarz=2     OK:         	Weiß=10    	Schwarz=13    Bester:       	Weiß=1     	Schwarz=4} 0-1

[Event "Polish University-ch Open 2024"]
[Site "Lublin"]
[Date "2024.02.24"]
[Round "9.18"]
[White "Radecki, Adam"]
[Black "Hasterok, Mateusz"]
[Result "0-1"]
[ECO "C00"]
[WhiteElo "2064"]
[BlackElo "2150"]
[Annotator "ChessBase"]
[PlyCount "62"]
[EventDate "2024.02.22"]
[EventType "swiss"]
[EventCountry "POL"]
[SourceTitle "playchess.com"]
[Source "ChessBase"]
[SourceQuality "1"]
[TimeControl "600+3"]

1. e4 {[%emt 0:00:01]} c5 {[%emt 0:00:01]} 2. d3 {[%emt 0:00:01]} Nc6 {[%emt 0:00:04]} 3. Nd2 {[%emt 0:00:01]} e6 {[%emt 0:00:02]} 4. g3 {[%emt 0:00:01]} Nf6 {[%emt 0:00:02]} 5. Bg2 {[%emt 0:00:01]} d5 {[%emt 0:00:01]} 6. Ngf3 {[%emt 0:00:03]} Be7 {[%emt 0:00:02]} 7. O-O {[%emt 0:00:02]} O-O {[%emt 0:00:02]} 8. c3 {[%emt 0:00:02]} b5 {[%emt 0:00:01]} 9. Re1 {[%emt 0:00:05]} a5 {[%emt 0:00:10]} 10. h4 {[%emt 0:00:05]} dxe4 {[%emt 0:00:27]} 11. dxe4 {[%emt 0:00:02]} Bb7 {[%emt 0:00:17]} 12. Qc2 {[%emt 0:00:17]} Ng4 {[%emt 0:00:04]} 13. e5 {[%emt 0:00:35]} c4 {[%emt 0:00:21]} 14. a4 {[%emt 0:02:03]} Qb6 {[%emt 0:00:13]} 15. Re2 {[%emt 0:00:19]} Bc5 {[%emt 0:00:45]} 16. Ne4 {[%emt 0:00:07]} Rad8 {[%emt 0:01:00]} 17. axb5 {[%emt 0:00:27]} Qxb5 {[%emt 0:01:17]} 18. Nfg5 {[%emt 0:00:09]} g6 {[%emt 0:01:20]} 19. Nf6+ {[%emt 0:00:16]} Nxf6 {[%emt 0:00:02]} 20. exf6 {[%emt 0:00:01]} Rfe8 {[%emt 0:00:18]} 21. h5 {[%emt 0:00:15]} Bf8 {[%emt 0:00:09]} 22. hxg6 {[%emt 0:00:30]} hxg6 {[%emt 0:00:02]} 23. Be4 {[%emt 0:00:04]} Rd3 {[%emt 0:01:18]} 24. b3 {[%emt 0:01:03]} Red8 {[%emt 0:00:02]} 25. bxc4 {[%emt 0:00:16]} Rd1+ {[%emt 0:00:11]} 26. Kh2 {[%emt 0:00:30]} Qxc4 {[%emt 0:00:39]} 27. Nxf7 {[%emt 0:01:10]} Kxf7 {[%emt 0:00:24]} 28. Bxg6+ {[%emt 0:00:07]} Kg8 {[%emt 0:00:01]} 29. Be4 {[%emt 0:01:17]} Qc5 {[%emt 0:00:45]} 30. Bf3 {[%emt 0:00:29]} Ne7 {[%emt 0:00:07]} 31. fxe7 {[%emt 0:00:25]} Qh5+ {[%emt 0:00:01]} 0-1